bitfinex-derivatives/quotes_BTCF0:USTF0_20251216
["timestamp","ask_amount","ask_price","bid_price","bid_amount"]
[1765915735964,0.03826602,87643.0,87642.0,0.1553]
[1765915737065,0.03826602,87643.0,87642.0,0.03574]
[1765915737260,0.03926602,87643.0,87642.0,0.03574]
[1765915737666,0.04026602,87643.0,87642.0,0.03574]
[1765915738564,0.03826602,87643.0,87642.0,0.03574]
[1765915738771,0.04126602,87643.0,87642.0,0.03574]
[1765915739366,0.06726597,87643.0,87642.0,0.03574]
[1765915739566,0.06986187,87643.0,87642.0,0.03574]
[1765915740181,0.06986187,87643.0,87642.0,0.1553]
[1765915741671,0.06886187,87643.0,87642.0,0.1553]
[1765915742383,0.06786187,87643.0,87642.0,0.1553]
[1765915742574,0.06886187,87643.0,87642.0,0.1553]
[1765915743377,0.06786187,87643.0,87642.0,0.1553]
[1765915743580,0.06886187,87643.0,87642.0,0.1553]
[1765915744583,0.04141235,87643.0,87642.0,0.1553]
[1765915744782,0.002,87643.0,87642.0,0.1553]
[1765915744986,0.00017113,87651.0,87650.0,0.10848]
[1765915745188,0.00017113,87651.0,87650.0,0.1198915]
[1765915745885,0.0114097,87666.0,87665.0,0.10848]
[1765915746090,0.06796099,87666.0,87665.0,0.10848]
[1765915746276,0.05655129,87666.0,87665.0,0.10848]
[1765915746478,0.0114076,87680.0,87679.0,0.10848]
[1765915746778,0.03881975,87680.0,87679.0,0.10848]
[1765915748084,0.0114073,87683.0,87682.0,0.10848]
[1765915748574,0.01157773,87688.0,87687.0,0.1198867]
[1765915748770,0.00017113,87688.0,87687.0,0.1198867]
[1765915749280,0.00017113,87688.0,87687.0,0.1530667]
[1765915751889,0.01157763,87688.0,87687.0,0.1530667]
[1765915752383,0.00017113,87688.0,87687.0,0.1530667]
[1765915753388,0.01368577,87698.0,87697.0,0.10848]
[1765915753692,0.16775089,87710.0,87709.0,0.10848]
[1765915753889,0.03913807,87710.0,87709.0,0.10848]
[1765915754385,0.06825681,87710.0,87709.0,0.10848]
[1765915754983,0.0114043,87705.0,87704.0,0.14166]
[1765915756503,0.011404,87708.0,87707.0,0.10848]
[1765915756791,0.011404,87708.0,87707.0,0.05464]
[1765915757476,0.011404,87708.0,87707.0,0.1198841]
[1765915757678,0.02911874,87710.0,87709.0,0.10848]
[1765915757893,0.01157363,87718.0,87717.0,0.10848]
[1765915758083,0.04078093,87718.0,87717.0,0.10848]
[1765915758284,0.06848774,87718.0,87717.0,0.10848]
[1765915759394,0.04078093,87718.0,87717.0,0.10848]
[1765915759790,0.04378093,87718.0,87717.0,0.10848]
[1765915760890,0.04778093,87718.0,87717.0,0.10948]
[1765915762493,0.00717103,87718.0,87717.0,0.10948]
[1765915763086,0.0114002,87737.0,87736.0,0.14166]
[1765915763293,0.03905892,87737.0,87736.0,0.14166]
[1765915764589,0.04205892,87737.0,87736.0,0.14166]
[1765915764789,0.04505892,87737.0,87736.0,0.14266]
[1765915765298,0.0174002,87737.0,87736.0,0.14266]
[1765915766593,0.0174002,87737.0,87736.0,0.03418]
[1765915767882,0.0174002,87737.0,87736.0,0.14266]
[1765915770299,0.0174002,87737.0,87736.0,0.03418]
[1765915770501,0.04503886,87737.0,87736.0,0.03418]
[1765915770700,0.04503975,87737.0,87736.0,0.03418]
[1765915772399,0.04503975,87737.0,87736.0,7e-08]
[1765915772599,0.0114012,87729.0,87728.0,3e-08]
[1765915772792,0.03904075,87729.0,87728.0,3e-08]
[1765915773799,0.04104075,87729.0,87728.0,3e-08]
[1765915774400,0.07492122,87729.0,87728.0,3e-08]
[1765915774602,0.0114033,87713.0,87712.0,0.03318]
[1765915774794,0.03904285,87713.0,87712.0,0.03318]
[1765915775598,0.03904285,87713.0,87712.0,0.03418]
[1765915775799,0.03904285,87713.0,87712.0,0.03518]
[1765915776200,0.03904285,87713.0,87712.0,0.08318]
[1765915776605,0.03904285,87713.0,87712.0,0.03318]
[1765915776803,0.04304285,87713.0,87712.0,0.03318]
[1765915777495,0.10423377,87713.0,87712.0,0.03318]
[1765915778090,0.04304285,87713.0,87712.0,0.03318]
[1765915778297,0.04204285,87713.0,87712.0,0.03318]
[1765915778498,0.04104285,87713.0,87712.0,0.03318]
[1765915778699,0.04304285,87713.0,87712.0,0.03318]
[1765915779002,0.04204285,87713.0,87712.0,0.03318]
[1765915779707,0.06988649,87713.0,87712.0,0.03318]
[1765915780603,0.06988649,87713.0,87704.0,0.03335103]
[1765915780604,0.0114043,87705.0,87704.0,0.03335103]
[1765915780808,0.03904385,87705.0,87704.0,0.00017103]
[1765915782400,0.03904385,87705.0,87696.0,0.03318]
[1765915782401,0.0114054,87697.0,87696.0,0.03318]
[1765915783102,0.03904495,87697.0,87696.0,0.03318]
[1765915783905,0.04204495,87697.0,87696.0,0.03318]
[1765915784301,0.0114064,87689.0,87688.0,0.02844103]
[1765915784506,0.03904595,87689.0,87688.0,0.00017103]
[1765915785313,0.04004595,87689.0,87688.0,0.00017103]
[1765915786114,0.04204595,87689.0,87688.0,0.02768103]
[1765915786314,0.04104595,87689.0,87688.0,0.02768103]
[1765915786522,0.04304595,87689.0,87688.0,0.02768103]
[1765915786718,0.13487964,87689.0,87688.0,0.02768103]
[1765915786908,0.04404595,87689.0,87688.0,0.02768103]
[1765915791114,0.04404595,87689.0,87688.0,0.11802103]
[1765915791323,0.03263955,87689.0,87688.0,0.11802103]
[1765915792219,0.02882913,87697.0,87696.0,0.11785]
[1765915792719,0.04023453,87697.0,87696.0,0.11785]
[1765915793521,0.05037453,87697.0,87696.0,0.11785]
[1765915793824,0.04023453,87697.0,87696.0,0.11785]
[1765915794923,0.02123643,87697.0,87696.0,0.11785]
[1765915795327,0.02223643,87697.0,87696.0,0.11785]
[1765915795521,0.02223643,87697.0,87696.0,0.02751]
[1765915795522,0.03145643,87697.0,87696.0,0.02751]
[1765915795924,0.03045643,87697.0,87696.0,0.02851]
[1765915798130,0.03045643,87697.0,87696.0,0.02751]
[1765915798319,0.03545643,87697.0,87696.0,0.02751]
[1765915798921,0.03245643,87697.0,87696.0,0.02751]
[1765915799121,0.03445643,87697.0,87696.0,0.02751]
[1765915800329,0.0266564,87689.0,87688.0,0.11802103]
[1765915800916,0.0114064,87689.0,87688.0,0.11802103]
[1765915801233,0.0450064,87689.0,87688.0,0.11802103]
[1765915801417,0.0786364,87689.0,87688.0,0.11802103]
[1765915801619,0.0816364,87689.0,87688.0,0.00017103]
[1765915801819,0.0816364,87689.0,87688.0,3e-08]
[1765915802017,0.14297756,87689.0,87688.0,3e-08]
[1765915802218,0.14197756,87689.0,87688.0,3e-08]
[1765915802424,0.0796364,87689.0,87688.0,3e-08]
[1765915802834,0.0816364,87689.0,87688.0,3e-08]
[1765915804224,0.11128722,87689.0,87688.0,3e-08]
[1765915804925,0.10828722,87689.0,87688.0,3e-08]
[1765915805233,0.13580722,87689.0,87688.0,3e-08]
[1765915805421,0.13380722,87689.0,87688.0,3e-08]
[1765915805626,0.11128722,87689.0,87688.0,3e-08]
[1765915807733,0.11128722,87689.0,87688.0,0.08753003]
[1765915808137,0.10828722,87689.0,87688.0,0.08753003]
[1765915808436,0.11128722,87689.0,87688.0,0.08753003]
[1765915808831,0.04205722,87689.0,87688.0,0.08753003]
[1765915810641,0.04105722,87689.0,87688.0,0.08753003]
[1765915811030,0.04005722,87689.0,87688.0,0.08753003]
[1765915811425,0.03905722,87689.0,87688.0,0.08753003]
[1765915811641,0.04005722,87689.0,87688.0,0.08753003]
[1765915812227,0.03905722,87689.0,87688.0,0.08753003]
[1765915812428,0.04005722,87689.0,87688.0,0.08753003]
[1765915813044,0.68305136,87694.0,87693.0,0.0989359]
[1765915813341,0.0114058,87694.0,87693.0,0.08753]
[1765915814540,0.0114058,87694.0,87693.0,0.08853]
[1765915814836,0.00017103,87697.0,87696.0,0.11367]
[1765915816839,0.08529103,87697.0,87696.0,0.11467]
[1765915817537,0.14673659,87697.0,87696.0,0.11467]
[1765915817838,0.08529103,87697.0,87696.0,0.11467]
[1765915818442,0.08629103,87697.0,87696.0,0.11367]
[1765915818641,0.08729103,87697.0,87696.0,0.06986]
[1765915818843,0.0965263,87690.0,87689.0,0.11367]
[1765915819732,0.02355,87689.0,87688.0,3e-08]
[1765915820346,0.0114063,87690.0,87688.0,3e-08]
[1765915821143,0.0114063,87690.0,87689.0,0.08753]
[1765915821144,0.0965263,87690.0,87689.0,0.08753]
[1765915822251,0.0114063,87690.0,87688.0,3e-08]
[1765915824355,0.0134063,87690.0,87688.0,3e-08]
[1765915824653,0.0154063,87690.0,87688.0,3e-08]
[1765915824853,0.0134063,87690.0,87688.0,3e-08]
[1765915825162,0.0570463,87690.0,87689.0,0.08753]
[1765915825459,0.12703341,87690.0,87689.0,0.08753]
[1765915826358,0.12603341,87690.0,87689.0,0.08753]
[1765915826553,0.12503341,87690.0,87689.0,0.08753]
[1765915826754,0.12703341,87690.0,87689.0,0.08753]
[1765915826958,0.12603341,87690.0,87689.0,0.08753]
[1765915827166,0.12703341,87690.0,87689.0,0.08753]
[1765915827859,0.12503341,87690.0,87689.0,0.08753]
[1765915828061,0.12603341,87690.0,87689.0,0.08753]
[1765915828262,0.08455341,87690.0,87689.0,0.08753]
[1765915829066,0.12703341,87690.0,87689.0,0.08753]
[1765915829853,0.12503341,87690.0,87689.0,0.08753]
[1765915830058,0.12703341,87690.0,87689.0,0.08753]
[1765915830359,0.04191341,87690.0,87688.0,3e-08]
[1765915830569,0.09617499,87690.0,87688.0,3e-08]
[1765915830767,0.04181711,87689.0,87688.0,3e-08]
[1765915832162,0.04181711,87689.0,87675.0,0.11367]
[1765915832163,0.0965281,87676.0,87675.0,0.11367]
[1765915832365,0.12403521,87676.0,87675.0,0.11367]
[1765915832958,0.02750711,87676.0,87675.0,0.11367]
[1765915833264,0.06149502,87682.0,87681.0,0.08753]
[1765915833571,0.07290222,87684.0,87682.0,0.08753]
[1765915833760,0.07290222,87684.0,87683.0,0.0838]
[1765915834163,0.0114072,87684.0,87683.0,0.0838]
[1765915834566,0.07289698,87684.0,87683.0,0.0838]
[1765915835460,0.02910669,87686.0,87685.0,0.07896]
[1765915835659,0.23777588,87691.0,87690.0,0.07896]
[1765915835859,0.20503476,87691.0,87690.0,0.07896]
[1765915839372,0.02874866,87691.0,87690.0,0.07896]
[1765915839564,0.15620021,87700.0,87689.0,0.0114063]
[1765915839565,0.0114058,87694.0,87693.0,0.07896]
[1765915840562,0.0114058,87694.0,87693.0,0.08096]
[1765915840968,0.02866499,87697.0,87696.0,0.10315]
[1765915842872,0.02866499,87697.0,87696.0,0.10515]
[1765915843672,0.02866499,87697.0,87696.0,0.10415]
[1765915844174,0.00017103,87697.0,87696.0,0.10415]
[1765915844372,0.00017103,87697.0,87696.0,0.10315]
[1765915844571,0.00017103,87697.0,87696.0,0.10515]
[1765915845077,0.01157643,87697.0,87696.0,0.10515]
[1765915845475,0.03871061,87697.0,87696.0,0.10515]
[1765915845975,0.03871061,87697.0,87696.0,0.10315]
[1765915846175,0.03871061,87697.0,87696.0,0.10515]
[1765915846874,0.02730521,87697.0,87696.0,0.10515]
[1765915847065,0.02730446,87697.0,87696.0,0.10515]
[1765915848279,4.46e-06,87697.0,87696.0,0.10515]
[1765915850586,4.46e-06,87697.0,87696.0,0.10315]
[1765915850770,4.46e-06,87697.0,87696.0,0.10515]
[1765915850977,4.46e-06,87697.0,87696.0,0.1165555]
[1765915851581,0.01140986,87697.0,87696.0,0.1165555]
[1765915853385,0.01140986,87697.0,87696.0,0.1145555]
[1765915853584,0.01140986,87697.0,87696.0,0.1165555]
[1765915853783,0.01140986,87697.0,87696.0,0.10515]
[1765915855783,0.01140986,87697.0,87696.0,0.10315]
[1765915856091,0.01140986,87697.0,87696.0,0.10515]
[1765915856591,4.46e-06,87697.0,87696.0,0.02619]
[1765915863790,0.07355446,87697.0,87696.0,0.02619]
[1765915863989,0.43435446,87697.0,87696.0,0.07945]
[1765915864194,0.49586466,87697.0,87696.0,0.002]
[1765915864698,0.43435446,87697.0,87696.0,0.002]
[1765915864898,0.07355,87686.0,87685.0,0.07762103]
[1765915865097,0.43435446,87686.0,87685.0,0.07762103]
[1765915865298,0.44576126,87686.0,87685.0,0.07762103]
[1765915866091,0.44676126,87686.0,87685.0,0.07762103]
[1765915866600,0.44576126,87686.0,87685.0,0.07762103]
[1765915866795,0.44676126,87686.0,87685.0,0.07762103]
[1765915867000,0.44676126,87686.0,87685.0,0.00017103]
[1765915867392,0.47525212,87686.0,87685.0,0.00017103]
[1765915867697,0.47525212,87686.0,87685.0,0.00117103]
[1765915868096,0.0849593,87667.0,87666.0,0.09998086]
[1765915868300,0.08496376,87667.0,87666.0,0.09998086]
[1765915868993,0.08496376,87667.0,87666.0,0.02253086]
[1765915868994,4.46e-06,87667.0,87666.0,0.02253086]
[1765915869498,4.46e-06,87667.0,87666.0,0.02353086]
[1765915871006,4.46e-06,87667.0,87666.0,0.02453086]
[1765915871606,4.46e-06,87667.0,87666.0,0.02353086]
[1765915871806,4.46e-06,87667.0,87666.0,0.02553086]
[1765915872997,0.07355446,87667.0,87666.0,0.08055086]
[1765915874500,0.0114093,87668.0,87667.0,0.0888593]
[1765915875002,0.02677047,87668.0,87667.0,0.0888593]
[1765915875605,0.02677047,87668.0,87667.0,0.0908593]
[1765915875803,0.02677047,87668.0,87667.0,0.0918593]
[1765915876211,0.011409,87669.0,87668.0,0.09988]
[1765915876405,0.11172177,87669.0,87668.0,0.09988]
[1765915877600,0.07579177,87669.0,87668.0,0.09988]
[1765915877810,0.3608,87670.0,87669.0,0.088859]
[1765915878606,0.0114088,87671.0,87669.0,0.088859]
[1765915878607,0.0114088,87671.0,87670.0,0.07745]
[1765915879004,0.0849588,87671.0,87670.0,0.07745]
[1765915879707,0.0849588,87671.0,87670.0,0.07845]
[1765915880410,0.11172063,87671.0,87670.0,0.07845]
[1765915881907,0.11172063,87671.0,87670.0,0.001]
[1765915883203,0.11172063,87671.0,87658.0,0.00245264]
[1765915883204,0.07355,87659.0,87658.0,0.00245264]
[1765915883406,0.47252213,87659.0,87658.0,0.00245264]
[1765915884406,0.47262891,87659.0,87658.0,0.00245264]
[1765915884806,0.0849626,87641.0,87640.0,0.43825]
[1765915885008,0.07355,87641.0,87640.0,0.09988]
[1765915886012,0.03762,87641.0,87640.0,0.09988]
[1765915886406,0.0849619,87647.0,87646.0,0.07745]
[1765915886606,0.1117151,87647.0,87646.0,0.07745]
[1765915887613,0.0849619,87647.0,87646.0,0.07745]
[1765915888113,0.11171663,87647.0,87646.0,0.07845]
[1765915888314,0.13310186,87647.0,87646.0,0.001]
[1765915889511,0.0849632,87637.0,87636.0,0.09988]
[1765915889714,0.08504499,87637.0,87636.0,0.09988]
[1765915890409,0.08504499,87637.0,87636.0,0.07745]
[1765915890614,0.0849637,87633.0,87632.0,0.03906113]
[1765915890811,0.0114154,87620.0,87619.0,0.03889]
[1765915891013,0.0114154,87620.0,87618.0,0.00228265]
[1765915891014,0.08547,87619.0,87618.0,0.00228265]
[1765915891311,0.47302808,87619.0,87618.0,0.00228265]
[1765915893410,0.47402808,87619.0,87618.0,0.00228265]
[1765915893612,0.47502808,87619.0,87618.0,0.00228265]
[1765915894014,0.503087,87619.0,87618.0,0.00186665]
[1765915899624,1.217607,87619.0,87618.0,0.00186665]
[1765915899815,1.21793203,87619.0,87618.0,0.00186665]
[1765915909035,0.0818662,87614.0,87613.0,0.00010533]
[1765915909228,0.07045,87592.0,87591.0,0.09666]
[1765915909424,0.07045,87592.0,87591.0,0.1080792]
[1765915910234,0.07057206,87592.0,87591.0,0.1080792]
[1765915911632,0.07057206,87592.0,87591.0,0.1130792]
[1765915912328,0.02727922,87592.0,87591.0,0.1130792]
[1765915912543,0.00012206,87592.0,87591.0,0.1130792]
[1765915917437,0.00017125,87600.0,87599.0,0.0856481]
[1765915917839,0.06236658,87600.0,87599.0,0.0856481]
[1765915918137,0.02738658,87600.0,87599.0,0.0856481]
[1765915918438,0.0274828,87600.0,87599.0,0.0856481]
[1765915918819,0.0274828,87600.0,87599.0,0.0866481]
[1765915920026,0.00026747,87600.0,87599.0,0.0886481]
[1765915920728,0.02756028,87600.0,87599.0,0.0896481]
[1765915920928,0.00026747,87600.0,87599.0,0.0896481]
[1765915921236,0.00026747,87600.0,87599.0,0.0876481]
[1765915921540,0.00026747,87600.0,87595.0,0.3608]
[1765915921541,0.0818707,87579.0,87578.0,0.39915]
[1765915921725,0.10917075,87579.0,87578.0,0.43503]
[1765915921922,0.10917075,87579.0,87578.0,0.07423]
[1765915922531,0.10927121,87579.0,87578.0,0.03835]
[1765915922735,0.10927121,87579.0,87578.0,0.07423]
[1765915923629,0.10927121,87579.0,87578.0,0.07823]
[1765915923830,0.10927121,87579.0,87578.0,0.04235]
[1765915924133,0.10927121,87579.0,87578.0,0.08218]
[1765915924134,0.11027121,87579.0,87578.0,0.08218]
[1765915924835,0.11027121,87579.0,87578.0,0.007]
[1765915925351,0.17179863,87579.0,87578.0,0.04446]
[1765915925538,0.82503121,87579.0,87578.0,0.08129]
[1765915925939,0.82503121,87579.0,87578.0,0.007]
[1765915926139,0.82403121,87579.0,87578.0,0.003]
[1765915926337,0.82403121,87579.0,87578.0,0.006]
[1765915926739,0.82403121,87579.0,87578.0,0.004]
[1765915927135,0.88555863,87579.0,87578.0,0.004]
[1765915927331,0.07127,87563.0,87562.0,0.03746]
[1765915927540,0.07127,87559.0,87558.0,0.0857134]
[1765915927731,0.09857005,87559.0,87558.0,0.0857134]
[1765915928337,0.07127,87559.0,87558.0,0.0857134]
[1765915928738,0.3608,87567.0,87566.0,0.0857124]
[1765915928938,0.38803388,87567.0,87566.0,0.0857124]
[1765915929550,0.02723388,87567.0,87566.0,0.0857124]
[1765915929746,0.06395388,87567.0,87566.0,0.0857124]
[1765915929933,0.09850388,87567.0,87566.0,0.03746]
[1765915930140,0.0826931,87561.0,87560.0,0.07429]
[1765915930433,0.10992698,87561.0,87560.0,0.09611]
[1765915931350,0.0826931,87561.0,87560.0,0.09611]
[1765915931540,0.10990807,87561.0,87560.0,0.09911]
[1765915931850,0.10990807,87561.0,87560.0,0.07729]
[1765915932343,0.11090807,87561.0,87560.0,0.04346]
[1765915932545,0.11090807,87561.0,87560.0,0.006]
[1765915932936,0.10990807,87561.0,87560.0,0.003]
[1765915933142,0.11090807,87561.0,87560.0,0.006]
[1765915933750,0.78072739,87561.0,87560.0,0.006]
[1765915934047,1.50232739,87561.0,87560.0,0.006]
[1765915934245,0.0826944,87551.0,87550.0,0.00011406]
[1765915934451,0.47070937,87551.0,87550.0,0.00011406]
[1765915934654,0.0826959,87539.0,87538.0,0.00228474]
[1765915934850,0.0826959,87539.0,87504.0,0.02182]
[1765915934851,0.0822983,87521.0,87520.0,0.3608]
[1765915935060,0.03632,87505.0,87504.0,0.09611]
[1765915935352,0.07087,87505.0,87504.0,0.02182]
[1765915935553,0.07089,87489.0,87488.0,0.09611]
[1765915935748,0.07089,87481.0,87480.0,0.09611]
[1765915936447,0.03634,87481.0,87480.0,0.09611]
[1765915936849,0.00013575,87489.0,87488.0,0.07429]
[1765915937443,0.3608,87496.0,87495.0,0.0857217]
[1765915938447,0.36089239,87496.0,87495.0,0.0857217]
[1765915938844,0.03646239,87496.0,87495.0,0.07429]
[1765915939153,0.07201239,87496.0,87495.0,0.07429]
[1765915939352,0.07201239,87496.0,87490.0,0.02182]
[1765915939353,0.07094,87491.0,87490.0,0.05928]
[1765915939650,0.0823722,87491.0,87490.0,0.02182]
[1765915939856,0.0114335,87481.0,87480.0,0.09611]
[1765915941154,0.4431831,87485.0,87484.0,0.07429]
[1765915941544,0.4431831,87485.0,87484.0,0.03746]
[1765915941743,0.4431831,87485.0,87484.0,0.07429]
[1765915942153,0.3608,87485.0,87484.0,0.07429]
[1765915942658,0.3618,87485.0,87484.0,0.07429]
[1765915943248,0.3608,87485.0,87484.0,0.07429]
[1765915944556,0.3608,87485.0,87484.0,0.07629]
[1765915944760,0.3608,87494.0,87493.0,0.07429]
[1765915945665,0.01160285,87497.0,87495.0,0.07429]
[1765915946254,0.37240285,87497.0,87495.0,0.07429]
[1765915946563,0.07115239,87496.0,87495.0,0.07429]
[1765915946956,0.07315239,87496.0,87495.0,0.07429]
[1765915947150,0.07106,87495.0,87482.0,0.3608]
[1765915947351,0.3608,87490.0,87489.0,0.0857225]
[1765915947557,0.00309239,87496.0,87495.0,0.0857217]
[1765915948272,0.00209239,87496.0,87495.0,0.0857217]
[1765915948454,9.239e-05,87496.0,87495.0,0.0857217]
[1765915949270,0.00109239,87496.0,87495.0,0.0877217]
[1765915950868,0.00109239,87496.0,87495.0,0.07629]
[1765915950869,0.01252399,87496.0,87495.0,0.07629]
[1765915951056,0.08359399,87496.0,87495.0,0.07629]
[1765915954566,0.08359399,87496.0,87495.0,0.03946]
[1765915954757,0.08359399,87496.0,87495.0,0.002]
[1765915955361,0.0816522,87491.0,87490.0,0.09368]
[1765915955570,0.4424522,87491.0,87490.0,0.02182]
[1765915956266,0.46952287,87491.0,87490.0,0.05635]
[1765915956456,0.39491,87491.0,87490.0,0.09368]
[1765915956657,0.3608,87491.0,87490.0,0.09368]
[1765915956858,0.39491,87491.0,87490.0,0.09368]
[1765915957769,0.39591,87491.0,87490.0,0.09468]
[1765915958064,0.3618,87491.0,87490.0,0.09468]
[1765915958773,0.001,87491.0,87490.0,0.09468]
[1765915960774,0.06243081,87491.0,87490.0,0.09468]
[1765915961269,0.0283519,87491.0,87490.0,0.09468]
[1765915961473,0.001,87491.0,87490.0,0.09468]
[1765915962375,0.07122,87491.0,87490.0,0.09468]
[1765915962581,0.09860768,87491.0,87490.0,0.09468]
[1765915963372,0.02838768,87491.0,87490.0,0.09468]
[1765915963773,0.11003988,87491.0,87490.0,0.09468]
[1765915964880,0.10903988,87491.0,87490.0,0.09468]
[1765915965073,0.11003988,87491.0,87490.0,0.09468]
[1765915965468,0.10903988,87491.0,87490.0,0.09468]
[1765915965675,0.11003988,87491.0,87490.0,0.09368]
[1765915965874,0.11003988,87491.0,87490.0,0.09468]
[1765915966374,0.11003988,87491.0,87490.0,0.001]
[1765915966581,0.11003988,87491.0,87480.0,0.02182]
[1765915966582,0.0816535,87481.0,87480.0,0.02182]
[1765915966771,0.46984118,87481.0,87480.0,0.02182]
[1765915966978,0.46984118,87481.0,87480.0,0.05635]
[1765915967180,0.44986262,87481.0,87480.0,0.09368]
[1765915967479,0.08906262,87481.0,87480.0,0.09368]
[1765915967679,0.02738768,87481.0,87480.0,0.09368]
[1765915967876,0.06167494,87482.0,87481.0,0.0832935]
[1765915968071,0.08918048,87482.0,87481.0,0.0832935]
[1765915968270,0.02750554,87482.0,87481.0,0.0832935]
[1765915969686,0.02750554,87482.0,87481.0,0.0842935]
[1765915970984,0.07022,87482.0,87481.0,0.07286]
[1765915971284,0.09772554,87482.0,87481.0,0.07286]
[1765915972076,0.08916883,87482.0,87481.0,0.07286]
[1765915972278,0.02750554,87482.0,87481.0,0.07286]
[1765915972983,0.06161554,87482.0,87481.0,0.07286]
[1765915973185,0.09772554,87482.0,87481.0,0.07286]
[1765915973982,0.02750554,87482.0,87481.0,0.07286]
[1765915974283,0.02720554,87482.0,87481.0,0.07286]
[1765915980588,0.00118212,87482.0,87481.0,0.07286]
[1765915981679,0.00118212,87482.0,87481.0,0.0842935]
[1765915982894,0.08958134,87510.0,87509.0,0.07186]
[1765915983077,0.09366217,87531.0,87529.0,0.0832871]
[1765915983276,0.0114271,87531.0,87530.0,0.07186]
[1765915983478,0.0455371,87531.0,87530.0,0.07186]
[1765915983679,0.0816471,87531.0,87530.0,0.07186]
[1765915984090,0.0455371,87531.0,87530.0,0.0832871]
[1765915984389,0.0816571,87531.0,87530.0,0.07186]
[1765915984990,0.0816571,87531.0,87530.0,0.07286]
[1765915985485,0.0455371,87531.0,87530.0,0.0842871]
[1765915985697,0.0816571,87531.0,87530.0,0.0832871]
[1765915986383,0.0816571,87531.0,87530.0,0.07186]
[1765915986583,0.0826571,87531.0,87530.0,0.07186]
[1765915987393,0.0826571,87531.0,87530.0,0.07286]
[1765915987983,0.0826571,87531.0,87530.0,0.07186]
[1765915988183,0.0826571,87531.0,87530.0,0.07286]
[1765915989082,0.001,87531.0,87530.0,0.07286]
[1765915989786,0.03566,87531.0,87530.0,0.07286]
[1765915990585,0.03466,87531.0,87530.0,0.07286]
[1765915990784,0.03566,87531.0,87530.0,0.07286]
[1765915991088,0.03566,87531.0,87530.0,0.07186]
[1765915991289,0.03566,87531.0,87530.0,0.07386]
[1765915991892,0.03466,87531.0,87530.0,0.07186]
[1765915992087,0.03566,87531.0,87530.0,0.07386]
[1765915992480,0.00017146,87539.0,87537.0,0.06992]
[1765915992894,0.00017146,87539.0,87537.0,0.0813462]
[1765915993095,0.3608,87548.0,87547.0,0.0813449]
[1765915993291,0.0460839,87555.0,87554.0,0.081344]
[1765915993497,0.03466,87555.0,87554.0,0.081344]
[1765915993887,0.07078,87555.0,87554.0,0.06992]
[1765915994193,0.07078,87553.0,87552.0,0.09209]
[1765915994391,0.3608,87558.0,87552.0,0.09209]
[1765915994392,0.39546,87558.0,87557.0,0.0813436]
[1765915994586,0.43158,87558.0,87557.0,0.0813436]
[1765915995491,0.43158,87558.0,87557.0,0.07092]
[1765915996192,0.43158,87558.0,87557.0,0.03529]
[1765915996393,0.43258,87558.0,87557.0,0.001]
[1765915996787,0.0822041,87553.0,87552.0,0.02217]
[1765915996982,0.0822041,87553.0,87552.0,0.05646]
[1765915997186,0.0822041,87553.0,87552.0,0.09209]
[1765915997406,0.03466,87553.0,87552.0,0.09209]
[1765915997703,0.07078,87553.0,87552.0,0.09209]
[1765915998595,0.07078,87553.0,87552.0,0.09309]
[1765915999089,0.07178,87553.0,87552.0,0.09309]
[1765916000099,0.07078,87553.0,87552.0,0.09309]
[1765916000407,0.07178,87553.0,87552.0,0.09309]
[1765916001693,0.07178,87553.0,87552.0,0.09209]
[1765916001887,0.07078,87553.0,87552.0,0.09309]
[1765916002088,0.07178,87553.0,87552.0,0.09309]
[1765916003098,0.07078,87553.0,87552.0,0.09309]
[1765916003302,0.07178,87553.0,87552.0,0.09309]
[1765916004204,0.07178,87553.0,87552.0,0.09209]
[1765916004403,0.07178,87553.0,87552.0,0.09309]
[1765916004902,0.07178,87553.0,87552.0,0.001]
[1765916005401,0.07178,87553.0,87552.0,0.05746]
[1765916005597,0.07178,87553.0,87552.0,0.09309]
[1765916005794,0.07178,87553.0,87552.0,0.001]
[1765916005992,0.07078,87547.0,87546.0,0.07009136]
[1765916006193,0.0822049,87547.0,87546.0,0.00017136]
[1765916006398,0.10867695,87547.0,87546.0,0.00017136]
[1765916007893,0.10967695,87547.0,87546.0,0.00017136]
[1765916008098,0.11067695,87547.0,87546.0,0.00017136]
[1765916008292,0.11067695,87547.0,87546.0,0.07009136]
[1765916008596,0.10967695,87547.0,87546.0,0.07009136]
[1765916008795,0.11067695,87547.0,87546.0,0.03446136]
[1765916009004,0.11067695,87547.0,87546.0,0.00017136]
[1765916009599,0.02847205,87547.0,87546.0,0.07009136]
[1765916009799,0.02747205,87547.0,87546.0,0.07009136]
[1765916010302,0.001,87547.0,87546.0,0.07009136]
[1765916010707,0.3608,87558.0,87557.0,0.0813436]
[1765916011006,0.42197876,87558.0,87557.0,0.0813436]
[1765916011200,0.45809876,87558.0,87557.0,0.0813436]
[1765916011401,0.45809876,87558.0,87557.0,0.06992]
[1765916011604,0.0822041,87553.0,87552.0,0.1035142]
[1765916011807,0.10872286,87553.0,87552.0,0.1035142]
[1765916012009,0.10872286,87553.0,87552.0,0.09209]
[1765916013809,0.10872286,87553.0,87552.0,0.09309]
[1765916016213,0.10872286,87553.0,87552.0,0.09209]
[1765916016411,0.10872286,87553.0,87552.0,0.09309]
[1765916017010,0.10872286,87553.0,87552.0,0.09209]
[1765916017215,0.10872286,87553.0,87552.0,0.09309]
[1765916017817,0.09729876,87553.0,87552.0,0.09309]
[1765916018605,0.09729876,87553.0,87552.0,0.1045142]
[1765916018806,0.09729876,87553.0,87552.0,0.1035142]
[1765916019115,0.09729876,87553.0,87552.0,0.1045142]
[1765916019706,0.09729876,87553.0,87552.0,0.1055142]
[1765916020108,0.09729876,87553.0,87552.0,0.09409]
[1765916020617,0.09729876,87553.0,87552.0,0.09309]
[1765916021013,0.09729876,87553.0,87552.0,0.001]
[1765916021611,0.09829876,87553.0,87552.0,0.001]
[1765916021817,0.09829876,87553.0,87552.0,0.02185]
[1765916022317,0.09829876,87553.0,87552.0,0.02085]
[1765916022509,0.07134,87547.0,87546.0,0.07224136]
[1765916022715,0.50519459,87547.0,87546.0,0.00017136]
[1765916023013,0.47008366,87547.0,87546.0,0.00017136]
[1765916023513,0.47008366,87547.0,87546.0,0.07224136]
[1765916023514,0.49743279,87547.0,87546.0,0.07224136]
[1765916023720,0.02651876,87547.0,87546.0,0.07224136]
[1765916023906,0.09868913,87550.0,87549.0,0.07207]